[Event "Romanian Women Championship 2024"]
[Site "Eforie Nord"]
[Date "2024.02.25"]
[Round "2.2"]
[White "Ardelean, Lorela-Daniela"]
[Black "Lehaci, Miruna-Daria"]
[Result "0-1"]
[ECO "C00"]
[WhiteElo "1802"]
[BlackElo "2227"]
[Annotator "TA"]
[PlyCount "42"]
[EventDate "2024.02.24"]
[EventType "swiss"]
[EventCountry "ROU"]
[SourceTitle "playchess.com"]
[Source "ChessBase"]
[SourceQuality "1"]
[TimeControl "40/5400+30:900+30"]

{[%evp 9,42,-4,4,0,-1,-16,-2,-13,-28,-32,-25,-29,-21,-54,-35,-156,-154,-154,-108,-126,-100,-115,-114,-187,-158,-192,-137,-210,-226,-1145,-1160,-1764,-1753,-1660,-1274]} 1. e4 {[%emt 0:00:03]} e6 {[%emt 1:31:00]} 2. f4 {[%emt 0:00:08]} d5 {[%emt 0:00:00]} 3. e5 {[%emt 0:00:04]} c5 {[%emt 0:00:00]} 4. c3 {[%emt 0:00:04]} Nc6 {[%emt 0:00:00]} 5. Nf3 {[%emt 0:00:10]} Nge7 {[%emt 0:00:00]} 6. Na3 {[%emt 0:00:05]} d4 {[%emt 0:00:00]} 7. Bd3 {[%emt 0:00:21]} Nd5 {[%emt 0:00:00]} 8. g3 {[%emt 0:00:30] The position is equal.} b6 {[%emt 0:00:00]} 9. Nc2 {[%emt 0:00:28]} Bb7 {[%emt 0:00:00]} 10. a3 {[%emt 0:01:10]} Qd7 {[%emt 0:00:00]} 11. Qe2 {[%emt 0:01:00]} O-O-O {[%emt 0:00:00]} (11... dxc3 {simplifies} 12. dxc3 Rd8 13. Bc4 Be7) 12. Be4 {[%emt 0:09:11] [#]} (12. cxd4 $15 h5 13. h4) 12... Nxf4 $1 $17 {[%emt 0:00:00][%mdl 512]} 13. gxf4 {[%emt 0:03:27] aiming for cxd4.} d3 {[%emt 0:00:00]} 14. Qf1 {[%emt 0:04:30]} ({But not} 14. Bxc6 $2 Qxc6 (14... dxe2 $2 15. Bxd7+ Rxd7 16. Kxe2 $18) (14... Bxc6 $2 15. Qe3 $19) 15. Qe3 dxc2 $19) 14... dxc2 {[%emt 0:00:00]} 15. Bxc2 {[%emt 0:00:06]} f6 {[%emt 0:00:00]} 16. b4 {[%emt 0:05:51]} (16. exf6 $17 {is a better defense.} gxf6 17. Rg1) 16... Be7 {[%emt 0:00:00]} 17. Rg1 {[%emt 0:07:32]} Rhf8 {[%emt 0:00:00] Hoping for ...fxe5.} 18. Qe2 {[%emt 0:18:13]} (18. exf6 $17 Rxf6 (18... gxf6 19. Qh3 $17) (18... Bxf6 19. bxc5 bxc5 20. Rb1 $17) 19. d4) 18... fxe5 $19 {[%emt 0:00:00]} 19. fxe5 {[%emt 0:18:40] [#]} (19. Be4) 19... Rxf3 $1 {[%emt 0:00:00][%mdl 512] Black is clearly winning.} 20. Qxf3 {[%emt 0:02:32] [#]} (20. Be4 Bh4+) 20... Nd4 $1 {[%emt 0:00:00][%mdl 512]} 21. Qxb7+ {[%emt 0:00:16]} (21. Qh3 Nxc2+) 21... Kxb7 {[%emt 0:00:00] Weighted Error Value: White=1.04/Black=0.04 (flawless) .  Mistake:       	White=4     	---        Inaccurate:     	White=2     	---        OK:         	White=1     	Black=7      Best:        	---       	Black=1      Brilliant:      	---       	Black=1} 0-1

[Event "Romanian Women Championship 2024"]
[Site "Eforie Nord"]
[Date "2024.02.25"]
[Round "2.3"]
[White "Pirvulescu, Ekaterina"]
[Black "Iordache, Alexia-Andreea"]
[Result "1/2-1/2"]
[ECO "B67"]
[WhiteElo "2091"]
[BlackElo "1769"]
[Annotator "RC"]
[PlyCount "113"]
[EventDate "2024.02.24"]
[EventType "swiss"]
[EventCountry "ROU"]
[SourceTitle "playchess.com"]
[Source "ChessBase"]
[SourceQuality "1"]
[TimeControl "40/5400+30:900+30"]

1. e4 {[%emt 0:00:02]} c5 {[%emt 0:00:07]} 2. Nf3 {[%emt 0:00:14]} d6 {[%emt 0:00:09]} 3. d4 {[%emt 0:00:17]} cxd4 {[%emt 0:00:05]} 4. Nxd4 {[%emt 0:00:07]} Nf6 {[%emt 0:00:05]} 5. Nc3 {[%emt 0:00:09]} Nc6 {[%emt 0:00:06]} 6. Bg5 {[%emt 0:00:31]} e6 {[%emt 0:00:07]} 7. Qd2 {[%emt 0:00:09]} a6 {[%emt 0:00:05]} 8. O-O-O {[%emt 0:00:16]} Bd7 {[%emt 0:00:06]} 9. f4 {[%emt 0:00:12]} h6 {[%emt 0:00:06]} 10. Bh4 {[%emt 0:03:04]} Be7 {[%emt 0:00:23]} 11. Nf3 {[%emt 0:06:12]} Qc7 {[%emt 0:00:10]} 12. Bxf6 {[%emt 0:02:24]} Bxf6 {[%emt 0:00:09]} 13. Qxd6 {[%emt 0:03:58]} Qxd6 {[%emt 0:00:05]} 14. Rxd6 {[%emt 0:00:04]} g5 {[%emt 0:00:52]} 15. g3 {[%emt 0:07:36]} Bxc3 {[%emt 0:02:52]} 16. bxc3 {[%emt 0:00:06]} Rg8 {[%emt 0:00:33]} 17. Be2 {[%emt 0:13:27]} gxf4 {[%emt 0:16:27]} 18. gxf4 {[%emt 0:00:14]} Rg2 {[%emt 0:01:39]} 19. Rd2 {[%emt 0:06:16]} O-O-O {[%emt 0:10:04]} 20. Ne1 {[%emt 0:03:11]} Rg7 {[%emt 0:06:53]} 21. Nd3 {[%emt 0:01:49]} Na5 {[%emt 0:07:13]} 22. Ne5 {[%emt 0:01:46]} Be8 {[%emt 0:08:28]} 23. Rxd8+ {[%emt 0:15:09]} Kxd8 {[%emt 0:00:07]} 24. Kd2 {[%emt 0:09:36]} Rg2 {[%emt 0:09:38]} 25. Ke3 {[%emt 0:01:23]} f6 {[%emt 0:02:30]} 26. Ng4 {[%emt 0:10:54]} Bb5 {[%emt 0:22:55]} 27. Bxb5 {[%emt 0:01:05]} Rxg4 {[%emt 0:00:12]} 28. Be2 {[%emt 0:01:18]} Rg7 {[%emt 0:02:28]} 29. Rd1+ {[%emt 0:01:01]} Kc7 {[%emt 0:01:06]} 30. Kf2 {[%emt 0:02:09]} e5 {[%emt 0:05:24]} 31. fxe5 {[%emt 0:05:01]} fxe5 {[%emt 0:00:02]} 32. Rg1 {[%emt 0:00:43]} Rxg1 {[%emt 0:03:21]} 33. Kxg1 {[%emt 0:00:01]} Kd6 {[%emt 0:01:02]} 34. Kf2 {[%emt 0:00:19]} Ke7 {[%emt 0:01:03]} 35. Kg3 {[%emt 0:01:34]} Kf6 {[%emt 0:00:10]} 36. Kh4 {[%emt 0:00:48]} Kg6 {[%emt 0:00:41]} 37. Bh5+ {[%emt 0:00:49]} Kf6 {[%emt 0:00:35]} 38. Be2 {[%emt 0:01:39]} Kg6 {[%emt 0:00:53]} 39. a4 {[%emt 0:00:42]} Kf6 {[%emt 0:00:30]} 40. Kh5 {[%emt 0:00:00]} Kg7 {[%emt 0:00:00]} 41. Bf1 {[%emt 0:07:54]} Kh7 {[%emt 0:00:43]} 42. c4 {[%emt 0:02:33]} Nc6 {[%emt 0:03:52]} 43. c5 {[%emt 0:03:08]} Nd4 {[%emt 0:01:23]} 44. Bh3 {[%emt 0:02:09]} Nc6 {[%emt 0:04:15]} 45. Bc8 {[%emt 0:00:17]} Na5 {[%emt 0:00:48]} 46. c6 {[%emt 0:01:56]} bxc6 {[%emt 0:00:13]} 47. Bxa6 {[%emt 0:00:05]} c5 {[%emt 0:00:25]} 48. Bb5 {[%emt 0:01:15]} Kg7 {[%emt 0:00:10]} 49. Bd7 {[%emt 0:02:06]} Nb7 {[%emt 0:01:11]} 50. Bc6 {[%emt 0:00:25]} Na5 {[%emt 0:00:11]} 51. Bd5 {[%emt 0:00:16]} Kh7 {[%emt 0:00:18]} 52. Kg4 {[%emt 0:00:46]} Kg6 {[%emt 0:00:10]} 53. h3 {[%emt 0:01:14]} Kf6 {[%emt 0:00:45]} 54. Kh5 {[%emt 0:00:44]} Kg7 {[%emt 0:00:13]} 55. Kg4 {[%emt 0:00:35]} Kg6 {[%emt 0:02:06]} 56. Kh4 {[%emt 0:00:23]} Kf6 {[%emt 0:01:53]} 57. Kh5 {[%emt 0:00:31]} 1/2-1/2

[Event "Romanian Women Championship 2024"]
[Site "Eforie Nord"]
[Date "2024.02.25"]
[Round "2.4"]
[White "Puia, Alexia-Teodora"]
[Black "Trifoi, Mihaela-Ioana"]
[Result "0-1"]
[ECO "D36"]
[WhiteElo "1751"]
[BlackElo "2003"]
[Annotator "RC"]
[PlyCount "70"]
[EventDate "2024.02.24"]
[EventType "swiss"]
[EventCountry "ROU"]
[SourceTitle "playchess.com"]
[Source "ChessBase"]
[SourceQuality "1"]
[TimeControl "40/5400+30:900+30"]

1. d4 {[%emt 0:00:05]} d5 {[%emt 0:00:06]} 2. c4 {[%emt 0:00:07]} e6 {[%emt 0:00:10]} 3. cxd5 {[%emt 0:00:19]} exd5 {[%emt 0:00:11]} 4. Nc3 {[%emt 0:00:13]} Nf6 {[%emt 0:00:16]} 5. Bg5 {[%emt 0:00:41]} Be7 {[%emt 0:00:08]} 6. Qc2 {[%emt 0:00:12]} c6 {[%emt 0:00:48]} 7. e3 {[%emt 0:00:08]} h6 {[%emt 0:00:11]} 8. Bh4 {[%emt 0:01:12]} O-O {[%emt 0:00:14]} 9. Bd3 {[%emt 0:02:05]} Re8 {[%emt 0:00:07]} 10. Nge2 {[%emt 0:02:01]} Ne4 {[%emt 0:00:15]} 11. Bxe7 {[%emt 0:00:22]} Qxe7 {[%emt 0:00:06]} 12. O-O {[%emt 0:01:35]} Nd7 {[%emt 0:00:27]} 13. Bxe4 {[%emt 0:10:45]} dxe4 {[%emt 0:00:19]} 14. d5 {[%emt 0:00:30]} Nf6 {[%emt 0:01:54]} 15. dxc6 {[%emt 0:00:28]} bxc6 {[%emt 0:00:15]} 16. Na4 {[%emt 0:15:04]} Ba6 {[%emt 0:07:54]} 17. Rfe1 {[%emt 0:02:35]} Bd3 {[%emt 0:02:42]} 18. Qc5 {[%emt 0:01:43]} Qc7 {[%emt 0:01:57]} 19. Nf4 {[%emt 0:12:44]} Rad8 {[%emt 0:05:26]} 20. Rac1 {[%emt 0:07:07]} Rd6 {[%emt 0:04:34]} 21. Nc3 {[%emt 0:07:05]} Qb8 {[%emt 0:05:39]} 22. Rcd1 {[%emt 0:05:11]} Nd7 {[%emt 0:06:36]} 23. Qa3 {[%emt 0:02:33]} c5 {[%emt 0:04:21]} 24. Rd2 {[%emt 0:07:24]} Ra6 {[%emt 0:10:18]} 25. Na4 {[%emt 0:00:24]} Nb6 {[%emt 0:04:01]} 26. b3 {[%emt 0:01:33]} Rxa4 {[%emt 0:00:14]} 27. bxa4 {[%emt 0:00:14]} Nc4 {[%emt 0:00:07]} 28. Qc3 {[%emt 0:01:46]} Nxd2 {[%emt 0:03:38]} 29. Qxd2 {[%emt 0:00:04]} c4 {[%emt 0:01:52]} 30. Qa5 {[%emt 0:05:31]} Qb2 {[%emt 0:14:49]} 31. Nd5 {[%emt 0:11:26]} Qxa2 {[%emt 0:01:39]} 32. Qxa7 {[%emt 0:01:32]} c3 {[%emt 0:04:26]} 33. Ne7+ {[%emt 0:00:12]} Rxe7 {[%emt 0:11:25]} 34. Qxe7 {[%emt 0:00:05]} Qd2 {[%emt 0:00:04]} 35. Ra1 {[%emt 0:01:55]} c2 {[%emt 0:00:05]} 0-1

[Event "Romanian Women Championship 2024"]
[Site "Eforie Nord"]
[Date "2024.02.25"]
[Round "2.5"]
[White "Obada, Ema"]
[Black "Schiopu, Oana-Magdalena"]
[Result "1-0"]
[ECO "B90"]
[WhiteElo "1969"]
[BlackElo "1750"]
[Annotator "RC"]
[PlyCount "71"]
[EventDate "2024.02.24"]
[EventType "swiss"]
[EventCountry "ROU"]
[SourceTitle "playchess.com"]
[Source "ChessBase"]
[SourceQuality "1"]
[TimeControl "40/5400+30:900+30"]

1. e4 {[%emt 0:00:03]} c5 {[%emt 0:00:08]} 2. Nf3 {[%emt 0:00:05]} d6 {[%emt 0:00:08]} 3. d4 {[%emt 0:00:05]} cxd4 {[%emt 0:00:08]} 4. Nxd4 {[%emt 0:00:09]} Nf6 {[%emt 0:00:25]} 5. Nc3 {[%emt 0:00:07]} a6 {[%emt 0:00:19]} 6. f3 {[%emt 0:00:06]} h5 {[%emt 0:00:33]} 7. Be3 {[%emt 0:00:13]} e5 {[%emt 0:00:15]} 8. Nb3 {[%emt 0:00:06]} Be6 {[%emt 0:00:27]} 9. Nd5 {[%emt 0:00:12]} Nxd5 {[%emt 0:01:29]} 10. exd5 {[%emt 0:00:06]} Bf5 {[%emt 0:00:05]} 11. Bd3 {[%emt 0:00:05]} Bxd3 {[%emt 0:02:30]} 12. Qxd3 {[%emt 0:00:06]} Nd7 {[%emt 0:00:40]} 13. c4 {[%emt 0:05:41]} Rc8 {[%emt 0:00:56]} 14. O-O {[%emt 0:02:12]} g5 {[%emt 0:08:26]} 15. Rac1 {[%emt 0:08:19]} Be7 {[%emt 0:08:31]} 16. Nd2 {[%emt 0:15:30]} a5 {[%emt 0:16:39]} 17. Nb1 {[%emt 0:16:18]} b6 {[%emt 0:09:18]} 18. Nc3 {[%emt 0:21:23]} Nc5 {[%emt 0:08:52]} 19. Qc2 {[%emt 0:02:05]} Qd7 {[%emt 0:13:22]} 20. a3 {[%emt 0:01:29]} Bd8 {[%emt 0:03:48]} 21. b4 {[%emt 0:01:29]} axb4 {[%emt 0:00:10]} 22. axb4 {[%emt 0:00:04]} Na6 {[%emt 0:00:14]} 23. Qb3 {[%emt 0:01:17]} f5 {[%emt 0:01:50]} 24. Ra1 {[%emt 0:00:34]} Nb8 {[%emt 0:00:27]} 25. Nb5 {[%emt 0:03:52]} f4 {[%emt 0:05:48]} 26. Ra7 {[%emt 0:00:42]} Bc7 {[%emt 0:00:03]} 27. Bf2 {[%emt 0:00:18]} g4 {[%emt 0:01:19]} 28. Rfa1 {[%emt 0:04:05]} Rg8 {[%emt 0:02:49]} 29. Nxc7+ {[%emt 0:00:23]} Rxc7 {[%emt 0:00:36]} 30. Bxb6 {[%emt 0:00:15]} gxf3 {[%emt 0:04:09]} 31. Qxf3 {[%emt 0:00:58]} Rxa7 {[%emt 0:00:33]} 32. Bxa7 {[%emt 0:01:00]} Qb7 {[%emt 0:05:07]} 33. Qxh5+ {[%emt 0:00:24]} Kd8 {[%emt 0:00:08]} 34. Bxb8 {[%emt 0:03:35]} Qxb8 {[%emt 0:00:30]} 35. Qf7 {[%emt 0:00:10]} Rg4 {[%emt 0:02:22]} 36. Ra7 {[%emt 0:00:24]} 1-0

[Event "Romanian Women Championship 2024"]
[Site "Eforie Nord"]
[Date "2024.02.25"]
[Round "2.7"]
[White "Cosma, Elena-Luminita"]
[Black "Vorniceanu, Alina"]
[Result "1-0"]
[ECO "B15"]
[WhiteElo "2236"]
[BlackElo "1476"]
[Annotator "RC"]
[PlyCount "73"]
[EventDate "2024.02.24"]
[EventType "swiss"]
[EventCountry "ROU"]
[SourceTitle "playchess.com"]
[Source "ChessBase"]
[SourceQuality "1"]
[TimeControl "40/5400+30:900+30"]

1. d4 {[%emt 0:00:02]} g6 {[%emt 0:00:13]} 2. e4 {[%emt 0:00:09]} Bg7 {[%emt 0:00:06]} 3. Nc3 {[%emt 0:00:05]} c6 {[%emt 0:00:11]} 4. h3 {[%emt 0:03:46]} d5 {[%emt 0:00:09]} 5. Nf3 {[%emt 0:00:35]} dxe4 {[%emt 0:01:49]} 6. Nxe4 {[%emt 0:00:06]} Nf6 {[%emt 0:01:41]} 7. Nxf6+ {[%emt 0:05:49]} exf6 {[%emt 0:00:06]} 8. Bc4 {[%emt 0:00:51]} O-O {[%emt 0:03:57]} 9. O-O {[%emt 0:00:46]} b5 {[%emt 0:05:17]} 10. Bb3 {[%emt 0:02:11]} a5 {[%emt 0:01:50]} 11. a4 {[%emt 0:07:24]} b4 {[%emt 0:02:38]} 12. Re1 {[%emt 0:00:51]} Re8 {[%emt 0:05:38]} 13. Rxe8+ {[%emt 0:10:41]} Qxe8 {[%emt 0:00:07]} 14. Bf4 {[%emt 0:00:09]} Nd7 {[%emt 0:08:52]} 15. Qd2 {[%emt 0:02:09]} Nb6 {[%emt 0:06:35]} 16. Re1 {[%emt 0:12:28]} Be6 {[%emt 0:05:57]} 17. Bxe6 {[%emt 0:13:12]} fxe6 {[%emt 0:00:08]} 18. Qd3 {[%emt 0:00:08]} Qd7 {[%emt 0:09:50]} 19. Bc1 {[%emt 0:07:20]} Nd5 {[%emt 0:24:07]} 20. Nd2 {[%emt 0:03:18]} Nf4 {[%emt 0:09:14]} 21. Qf3 {[%emt 0:00:54]} e5 {[%emt 0:02:48]} 22. Nb3 {[%emt 0:08:50]} Ne6 {[%emt 0:04:23]} 23. dxe5 {[%emt 0:02:28]} fxe5 {[%emt 0:00:01]} 24. Be3 {[%emt 0:02:04]} Qc7 {[%emt 0:02:16]} 25. Qg4 {[%emt 0:01:10]} Re8 {[%emt 0:01:15]} 26. Qc4 {[%emt 0:02:09]} Bf6 {[%emt 0:02:13]} 27. Nc5 {[%emt 0:03:21]} Kf7 {[%emt 0:00:14]} 28. Rd1 {[%emt 0:00:57]} Re7 {[%emt 0:01:07]} 29. b3 {[%emt 0:01:44]} h5 {[%emt 0:01:21]} 30. h4 {[%emt 0:02:39]} Bg7 {[%emt 0:00:42]} 31. g3 {[%emt 0:02:44]} Bf6 {[%emt 0:00:05]} 32. Rd3 {[%emt 0:00:20]} Qc8 {[%emt 0:01:01]} 33. Rd6 {[%emt 0:00:32]} Re8 {[%emt 0:00:30]} 34. Ne4 {[%emt 0:01:42]} Kg7 {[%emt 0:00:26]} 35. Rxc6 {[%emt 0:01:02]} Qd7 {[%emt 0:00:01]} 36. Kh2 {[%emt 0:00:33]} Qf7 {[%emt 0:01:00]} 37. Nd6 {[%emt 0:00:16]} 1-0

[Event "Romanian Women Championship 2024"]
[Site "Eforie Nord"]
[Date "2024.02.25"]
[Round "2.8"]
[White "Ciolacu, Alessia-Mihaela"]
[Black "Aldea, Maria-Antonia"]
[Result "1-0"]
[ECO "E16"]
[WhiteElo "2175"]
[BlackElo "1726"]
[Annotator "RC"]
[PlyCount "85"]
[EventDate "2024.02.24"]
[EventType "swiss"]
[EventCountry "ROU"]
[SourceTitle "playchess.com"]
[Source "ChessBase"]
[SourceQuality "1"]
[TimeControl "40/5400+30:900+30"]

1. d4 {[%emt 0:00:04]} Nf6 {[%emt 0:00:08]} 2. c4 {[%emt 0:00:08]} e6 {[%emt 0:00:04]} 3. Nf3 {[%emt 0:00:07]} Bb4+ {[%emt 0:00:26]} 4. Bd2 {[%emt 0:00:13]} Qe7 {[%emt 0:00:35]} 5. g3 {[%emt 0:00:17]} b6 {[%emt 0:00:43]} 6. Bg2 {[%emt 0:00:27]} Bb7 {[%emt 0:00:13]} 7. O-O {[%emt 0:00:37]} Bxd2 {[%emt 0:00:31]} 8. Qxd2 {[%emt 0:01:19]} O-O {[%emt 0:03:32]} 9. Nc3 {[%emt 0:01:53]} d6 {[%emt 0:07:36]} 10. Rfe1 {[%emt 0:15:43]} Ne4 {[%emt 0:07:10]} 11. Qc2 {[%emt 0:03:40]} Nxc3 {[%emt 0:01:24]} 12. Ng5 {[%emt 0:03:07]} Ne4 {[%emt 0:05:55]} 13. Bxe4 {[%emt 0:03:05]} c6 {[%emt 0:02:59]} 14. Bxh7+ {[%emt 0:26:04]} Kh8 {[%emt 0:00:07]} 15. h4 {[%emt 0:00:27]} Nd7 {[%emt 0:11:24]} 16. Be4 {[%emt 0:09:19]} Nf6 {[%emt 0:01:24]} 17. Bf3 {[%emt 0:02:48]} g6 {[%emt 0:04:10]} 18. Rad1 {[%emt 0:07:15]} Rad8 {[%emt 0:03:03]} 19. Qc3 {[%emt 0:00:34]} Kg7 {[%emt 0:01:38]} 20. b4 {[%emt 0:07:56]} d5 {[%emt 0:06:21]} 21. e4 {[%emt 0:06:28]} Qd7 {[%emt 0:02:45]} 22. e5 {[%emt 0:05:36]} Ng8 {[%emt 0:00:23]} 23. h5 {[%emt 0:01:54]} Qe7 {[%emt 0:03:31]} 24. Qe3 {[%emt 0:02:32]} Bc8 {[%emt 0:06:12]} 25. Kg2 {[%emt 0:00:31]} Nh6 {[%emt 0:00:44]} 26. Rh1 {[%emt 0:00:46]} Rh8 {[%emt 0:01:23]} 27. cxd5 {[%emt 0:00:30]} cxd5 {[%emt 0:01:55]} 28. Qf4 {[%emt 0:00:28]} Rdf8 {[%emt 0:03:40]} 29. Rc1 {[%emt 0:00:36]} Bb7 {[%emt 0:02:19]} 30. Rh2 {[%emt 0:00:26]} Rc8 {[%emt 0:02:04]} 31. Rch1 {[%emt 0:00:26]} f6 {[%emt 0:02:02]} 32. exf6+ {[%emt 0:00:15]} Qxf6 {[%emt 0:00:04]} 33. hxg6 {[%emt 0:00:16]} Qxf4 {[%emt 0:14:45]} 34. Nxe6+ {[%emt 0:00:06]} Kxg6 {[%emt 0:00:14]} 35. Nxf4+ {[%emt 0:00:15]} Kg7 {[%emt 0:00:06]} 36. Ne6+ {[%emt 0:00:51]} Kg6 {[%emt 0:00:12]} 37. Nf4+ {[%emt 0:00:43]} Kg7 {[%emt 0:00:11]} 38. Rh5 {[%emt 0:00:33]} Rc4 {[%emt 0:02:10]} 39. Ne6+ {[%emt 0:00:41]} Kg6 {[%emt 0:00:17]} 40. Nf4+ {[%emt 0:00:00]} Kg7 {[%emt 0:00:00]} 41. Rg5+ {[%emt 0:01:32]} Kf7 {[%emt 0:00:48]} 42. Rg6 {[%emt 0:00:24]} Rc6 {[%emt 0:00:56]} 43. Bxd5+ {[%emt 0:01:12]} 1-0

[Event "Romanian Women Championship 2024"]
[Site "Eforie Nord"]
[Date "2024.02.25"]
[Round "2.9"]
[White "Kiss, Hanna"]
[Black "Cosman, Andreea-Marioara"]
[Result "0-1"]
[ECO "B91"]
[WhiteElo "1446"]
[BlackElo "2108"]
[Annotator "RC"]
[PlyCount "110"]
[EventDate "2024.02.24"]
[EventType "swiss"]
[EventCountry "ROU"]
[SourceTitle "playchess.com"]
[Source "ChessBase"]
[SourceQuality "1"]
[TimeControl "40/5400+30:900+30"]

1. e4 {[%emt 0:00:02]} c5 {[%emt 0:00:05]} 2. Nf3 {[%emt 0:00:05]} d6 {[%emt 0:00:05]} 3. d4 {[%emt 0:00:08]} Nf6 {[%emt 0:00:05]} 4. Nc3 {[%emt 0:00:45]} cxd4 {[%emt 0:00:06]} 5. Nxd4 {[%emt 0:00:14]} a6 {[%emt 0:00:05]} 6. g3 {[%emt 0:00:51]} g6 {[%emt 0:01:54]} 7. Bg2 {[%emt 0:01:00]} Bg7 {[%emt 0:00:39]} 8. h3 {[%emt 0:03:34]} O-O {[%emt 0:05:08]} 9. O-O {[%emt 0:02:13]} Nc6 {[%emt 0:01:46]} 10. Be3 {[%emt 0:03:46]} Bd7 {[%emt 0:02:04]} 11. Qd2 {[%emt 0:01:27]} Rc8 {[%emt 0:06:29]} 12. Nde2 {[%emt 0:10:54]} Ne5 {[%emt 0:06:25]} 13. Kh2 {[%emt 0:13:42]} Nc4 {[%emt 0:08:05]} 14. Qc1 {[%emt 0:04:17]} b5 {[%emt 0:00:15]} 15. Bd4 {[%emt 0:08:08]} e5 {[%emt 0:03:48]} 16. Be3 {[%emt 0:01:55]} Nxe3 {[%emt 0:00:07]} 17. Qxe3 {[%emt 0:00:16]} b4 {[%emt 0:00:24]} 18. Nd5 {[%emt 0:06:26]} Nxd5 {[%emt 0:00:16]} 19. exd5 {[%emt 0:00:06]} Rxc2 {[%emt 0:00:22]} 20. Rfe1 {[%emt 0:09:13]} Bb5 {[%emt 0:08:07]} 21. a4 {[%emt 0:09:12]} bxa3 {[%emt 0:00:18]} 22. bxa3 {[%emt 0:01:17]} Qa5 {[%emt 0:02:09]} 23. Be4 {[%emt 0:05:37]} Rxe2 {[%emt 0:02:30]} 24. Rxe2 {[%emt 0:01:01]} Bxe2 {[%emt 0:00:20]} 25. Qxe2 {[%emt 0:00:07]} f5 {[%emt 0:01:53]} 26. Bg2 {[%emt 0:02:20]} e4 {[%emt 0:07:16]} 27. Rc1 {[%emt 0:03:26]} Qxa3 {[%emt 0:06:06]} 28. Rc6 {[%emt 0:02:05]} Be5 {[%emt 0:04:15]} 29. Rxa6 {[%emt 0:02:02]} Qb3 {[%emt 0:00:18]} 30. Qd2 {[%emt 0:02:49]} f4 {[%emt 0:02:58]} 31. Qe1 {[%emt 0:02:21]} e3 {[%emt 0:03:38]} 32. Kh1 {[%emt 0:03:38]} f3 {[%emt 0:01:52]} 33. Bf1 {[%emt 0:00:47]} e2 {[%emt 0:00:32]} 34. Bxe2 {[%emt 0:00:01]} fxe2 {[%emt 0:00:39]} 35. Qxe2 {[%emt 0:00:07]} Qxd5+ {[%emt 0:00:53]} 36. Kg1 {[%emt 0:01:01]} Rb8 {[%emt 0:02:12]} 37. Qe1 {[%emt 0:01:11]} Qb5 {[%emt 0:04:08]} 38. Ra3 {[%emt 0:00:50]} Qb1 {[%emt 0:00:31]} 39. Qxb1 {[%emt 0:00:04]} Rxb1+ {[%emt 0:00:06]} 40. Kg2 {[%emt 0:00:00]} Rb2 {[%emt 0:00:00]} 41. Ra7 {[%emt 0:00:43]} Bd4 {[%emt 0:00:30]} 42. Ra8+ {[%emt 0:00:15]} Kf7 {[%emt 0:00:15]} 43. Kf3 {[%emt 0:00:07]} d5 {[%emt 0:00:23]} 44. Kg2 {[%emt 0:00:32]} Rxf2+ {[%emt 0:00:07]} 45. Kh1 {[%emt 0:00:04]} Be3 {[%emt 0:00:35]} 46. g4 {[%emt 0:00:20]} d4 {[%emt 0:00:31]} 47. Rd8 {[%emt 0:00:19]} Ke7 {[%emt 0:00:22]} 48. Rd5 {[%emt 0:00:16]} Rf6 {[%emt 0:00:31]} 49. g5 {[%emt 0:00:20]} Rd6 {[%emt 0:00:08]} 50. Re5+ {[%emt 0:00:05]} Kd7 {[%emt 0:00:20]} 51. Rb5 {[%emt 0:00:37]} d3 {[%emt 0:00:08]} 52. Rb7+ {[%emt 0:00:05]} Ke6 {[%emt 0:00:21]} 53. Rb3 {[%emt 0:00:11]} d2 {[%emt 0:00:10]} 54. Rxe3+ {[%emt 0:00:05]} Kd7 {[%emt 0:00:04]} 55. Kg2 {[%emt 0:00:26]} d1=Q {[%emt 0:00:07]} 0-1

[Event "Romanian Women Championship 2024"]
[Site "Eforie Nord"]
[Date "2024.02.25"]
[Round "2.10"]
[White "Kiss, Abigel"]
[Black "Sava, Ana-Maria"]
[Result "1/2-1/2"]
[ECO "B06"]
[WhiteElo "1300"]
[BlackElo "1916"]
[Annotator "RC"]
[PlyCount "57"]
[EventDate "2024.02.24"]
[EventType "swiss"]
[EventCountry "ROU"]
[SourceTitle "playchess.com"]
[Source "ChessBase"]
[SourceQuality "1"]
[TimeControl "40/5400+30:900+30"]

1. e4 {[%emt 0:00:03]} g6 {[%emt 0:00:08]} 2. d4 {[%emt 0:00:05]} Bg7 {[%emt 0:00:08]} 3. Nc3 {[%emt 0:00:05]} e6 {[%emt 0:00:08]} 4. Be3 {[%emt 0:00:42]} Ne7 {[%emt 0:00:15]} 5. Be2 {[%emt 0:01:42]} d5 {[%emt 0:01:02]} 6. e5 {[%emt 0:00:46]} b6 {[%emt 0:00:22]} 7. f4 {[%emt 0:02:54]} Nd7 {[%emt 0:02:51]} 8. Nf3 {[%emt 0:01:39]} c5 {[%emt 0:00:17]} 9. Qd2 {[%emt 0:07:35]} a6 {[%emt 0:03:12]} 10. Nd1 {[%emt 0:09:56]} Bb7 {[%emt 0:02:27]} 11. Bf2 {[%emt 0:03:15]} cxd4 {[%emt 0:01:45]} 12. Nxd4 {[%emt 0:00:23]} Nc5 {[%emt 0:00:13]} 13. Bf3 {[%emt 0:03:12]} Nc6 {[%emt 0:00:37]} 14. c3 {[%emt 0:01:30]} Rc8 {[%emt 0:05:28]} 15. Rc1 {[%emt 0:02:58]} Qc7 {[%emt 0:04:55]} 16. O-O {[%emt 0:02:31]} O-O {[%emt 0:02:16]} 17. Ne3 {[%emt 0:01:14]} b5 {[%emt 0:01:41]} 18. Ng4 {[%emt 0:12:08]} Qe7 {[%emt 0:06:20]} 19. b4 {[%emt 0:04:45]} Nd7 {[%emt 0:09:09]} 20. Rfd1 {[%emt 0:04:29]} Nxd4 {[%emt 0:09:19]} 21. Bxd4 {[%emt 0:04:27]} Rc4 {[%emt 0:09:10]} 22. Be2 {[%emt 0:08:48]} Rc7 {[%emt 0:02:45]} 23. a3 {[%emt 0:03:42]} Rfc8 {[%emt 0:04:08]} 24. Rc2 {[%emt 0:01:03]} f5 {[%emt 0:10:28]} 25. Nf2 {[%emt 0:01:26]} h6 {[%emt 0:02:27]} 26. Be3 {[%emt 0:03:06]} Nf8 {[%emt 0:01:37]} 27. Nd3 {[%emt 0:01:25]} Nh7 {[%emt 0:02:02]} 28. Rdc1 {[%emt 0:03:24]} Rc6 {[%emt 0:02:47]} 29. h3 {[%emt 0:05:53]} 1/2-1/2